Workbook

Sheet Balans 2021
A1: Jaarcijfers stg. Multiplex per 31-12-2021
C4: BALANS
A6: ACTIVA per: | B6: 31 december 2021 | E6: 31 december 2020
A9: Liquide middelen
A10: Kas | B10: 52 | E10: 52
A11: Bank | B11: 22548 | E11: 6611
A12: Spaarrekening | B12: 35273 | E12: 35273 | F12: =SUM(E9) -> 0
C13: =SUM(B10:B12) -> 57873 | F13: =SUM(E10:E12) -> 41936
A15: Vorderingen lang
A17: Voorbelasting | B17: 77 | E17: 0
C18: =SUM(B17) -> 77 | F18: =SUM(E17) -> 0
A21: Vorderingen kort
A23: nog te ontvangen bedragen | E23: 750
A24: Nog te ontvangen subsidie | B24: 5505 | E24: 0
C25: =SUM(B22:B24) -> 5505 | F25: =SUM(E22:E24) -> 750
A31: TOTAAL | C31: =SUM(C9:C26) -> 63455 | F31: =SUM(F9:F26) -> 42686
C32: ========= | F32: =========
C47: BALANS
A49: PASSIVA per: | B49: 31 december 2021 | E49: 31 december 2020
A52: Eigen Vermogen
A54: Vermogen | B54: 25554 | E54: 8352
A55: Voorheen toevoeging uit
A56: winst voorgaande jaar
A57: niet aftrekbare bedragen
A58: niet aftrekbare bedragen
A59: Resultaat verslagperiode | B59: ='V&W 2021'!$D$46 -> 4164 | E59: ='V&W 2021'!$H$46 -> 17202
C60: =SUM(B54:B59) -> 29718 | F60: =SUM(E54:E59) -> 25554
A63: Schulden lang
A65: lening | B65: 0 | E65: 0
C66: =SUM(B65) -> 0 | F66: =SUM(E65) -> 0
A68: Crediteuren
A70: crediteuren | B70: 9157 | E70: 198
C71: =SUM(B70:B70) -> 9157 | F71: =SUM(E70:E70) -> 198
A73: Schulden kort
A74: nog te betalen btw | E74: 534
A75: nog te ontvangen kosten | B75: 7180
A76: vooruitontvangen subsidies | B76: 17400 | E76: 16400
C77: =SUM(B75:B76) -> 24580 | F77: =SUM(E74:E76) -> 16934
A80: TOTAAL | C80: =SUM(C60,C66,C71,C77) -> 63455 | F80: =SUM(F60,F66,F71,F77) -> 42686
C81: ========== | F81: =========

Sheet V&W 2021
A1: Jaarcijfers stg. Multiplex per 31-12-2021
B3: 2021 | F3: 2020
A5: Inkomsten | B5: Inkomsten | D5: Uitgaven | F5: Inkomsten | H5: Uitgaven
A7: Subsidies | B7: 30000 | F7: 30000
A9: Fondsen/sponsering | B9: 5505 | F9: 7182
A11: Overige opbrengsten | B11: 3581 | F11: 3716
A16: Uitgaven
A18: Kosten ondersteuning | D18: 0 | H18: 0
A20: Huisvestingskosten | D20: 1250 | H20: 1250
A22: Festivalkosten | D22: 5319 | H22: 7008
A24: Infra | D24: 368 | H24: 0
A26: Vergunningen/Verzekeringen etc. | C26: 225 | D26: 242 | H26: 242
A28: Organisatiekosten | D28: 21294 | H28: 11245
A30: Vrijwilligers & catering | D30: 1639 | H30: 1039
A32: Publiciteit | D32: 1200 | H32: 220
A34: Div. algemene kosten | D34: 3610 | H34: 2692
A38: TOTAAL: | B38: =SUM(B7:B36) -> 39086 | D38: =SUM(D18:D37) -> 34922 | F38: =SUM(F7:F36) -> 40898 | H38: =SUM(H7:H36) -> 23696
A46: Resultaat per 31-12 | D46: =B38-D38 -> 4164 | H46: =F38-H38 -> 17202

Sheet Toelichting V&W 2021
A1: TOELICHTING OP DE RESULTATENREKENING
A3: BATEN
A5: Subsidies
A6: De specificatie is als volgt : | J6: 2021-12-31 | L6: 2020-12-31
J7: € | L7: €
A9: Gemeente Haarlem structureel | J9: 30000 | L9: 30000
A10: Gemeente Haarlem éénmalige tegemoetkoming in de kosten evenementen | J10: 0 | L10: 0
A12: Totaal | J12: =SUM(J9:J10) -> 30000 | L12: =SUM(L9:L10) -> 30000
A14: Fondsen/sponsering
A15: De specificatie is als volgt : | J15: =J6 -> 2021-12-31 | L15: =L6 -> 2020-12-31
J16: € | L16: €
A17: Fondsen
A18: Sena | J18: 5505 | L18: 7000
A20: Totaal | J20: =SUM(J16:J19) -> 5505 | L20: =#REF!+#REF! -> 
A23: Toelichting overige opbrengsten
A24: De specificatie is als volgt : | J24: =J6 -> 2021-12-31 | L24: =L6 -> 2020-12-31
J25: € | L25: €
A26: Overige opbrengsten:
A27: Opbrengst Markt | J27: 0 | L27: 0
A28: Opbrengst Bar | J28: 0 | L28: 0
A29: Houtvriendjes & giften | J29: 3581 | L29: 3716
A30: Opbrengst veiling | J30: 0 | L30: 0
A31: Overige inkomsten | L31: 182
A33: Totaal | J33: =SUM(J27:J32) -> 3581 | L33: =SUM(L27:L32) -> 3898
A36: LASTEN
A38: Ondersteuning
A39: De specificatie is als volgt : | J39: 2021-12-31 | L39: 2020-12-31
J40: € | L40: €
A42: Administratieve Ondersteuning | J42: 0 | L42: 0
A43: Totaal personeelskosten | J43: =SUM(J41:J42) -> 0 | L43: =SUM(L41:L42) -> 0
A45: Specificatie gemiddeld aantal personeelsleden (in FTE's) per segment:
A49: Gemiddeld aantal personeelsleden op basis van full-time eenheden | J49: =SUM(J46:J47) -> 0 | L49: =SUM(L46:L47) -> 0
J53: =J39 -> 2021-12-31 | L53: =L39 -> 2020-12-31
A54: Huisvestingskosten | J54: € | L54: €
A55: De specificatie is als volgt :
A57: Huurkosten | J57: 1250 | L57: 1250
A58: - materiële vaste activa
A60: Afschrijvingskosten:
A61: - immateriële vaste activa
A62: - materiële vaste activa
A64: Sub-totaal afschrijvingen | J64: =SUM(J57:J63) -> 1250 | L64: =SUM(L57:L63) -> 1250
A66: Dotatie/vrijval egalisatierekening afschrijvingen instandhouding
A68: Totaal Huisvesting | J68: =SUM(J64:J66) -> 1250 | L68: =SUM(L64:L66) -> 1250
A70: Festivalkosten
A71: De specificatie is als volgt : | J71: =J32 -> 00:00:00 | L71: =L32 -> 00:00:00
J72: € | L72: €
A73: Programmering festival
B74: Houtpodium | J74: 3019 | L74: 7008
B75: Houtnacht | J75: 1968 | L75: 0
B76: Kosten artiesten | J76: 105 | L76: 0
B77: Presentatiekosten | J77: 150 | L77: 0
B78: Buma rechten/Belasingen/etc | J78: 227 | L78: 0
J79: =SUM(J74:J78) -> 5469 | L79: =SUM(L74:L78) -> 7008
A81: Wereldmarkten
B82: Marktkramen | J82: 0 | L82: 0
A84: Bar
B85: Inkoop en kosten bar | J85: 0 | L85: 0
A87: Infrastructuur & Techniek
B88: Podia | J88: 0 | L88: 0
B89: Tenten | J89: 0 | L89: 0
B90: Licht & Geluid | J90: 218 | L90: 0
B91: Huur materialen | J91: 0 | L91: 0
B92: Diversen | J92: 0 | L92: 0
J93: =SUM(J88:J92) -> 218 | L93: =SUM(L88:L92) -> 0
A95: Vergunningen/EHBO/verzekeringen/beveiliging
B96: Verzekeringen | J96: 242 | L96: 242
B97: Overige kosten | J97: 0 | L97: 0
J98: =SUM(J96:J97) -> 242 | L98: =SUM(L96:L97) -> 242
A100: Organisatie kosten
B101: Reis- en vervoerskosten | J101: 0 | L101: 0
B102: Porto / telefoonkosten | J102: 420 | L102: 429.78
B103: Kantoorbenodigdheden / overigen | J103: 0 | L103: 68
B104: Vergaderkosten | J104: 179 | L104: 154
B105: Bestuurskosten/administratiekosten | J105: 352 | L105: 437
B106: Overige organisatiekosten | J106: =(20080+263) -> 20343 | L106: 10156
J107: =SUM(J101:J106) -> 21294 | L107: =SUM(L101:L106) -> 11244.78
A109: Vrijwilligers & Catering | J109: 1639 | L109: 1039
A111: Publiciteit
B112: Publiciteit regulier | J112: 1200 | L112: 219.5
B113: Publiciteit aanvullend | J113: 0 | L113: 0
J114: =SUM(J112:J113) -> 1200 | L114: =SUM(L112:L113) -> 219.5
A116: Diversen
B117: Nagekomen kosten | L117: 140
B118: (Niet) verrekenbare BTW (artiesten) | J118: 519 | L118: 672
B119: Af te dragen btw hoog | L119: 0
B120: Verrekenbare btw (afh. v. inkomsten) | J120: 3091 | L120: 1880
J121: =SUM(J118:J120) -> 3610 | L121: =SUM(L117:L120) -> 2692
A123: Totaal bedrijfskosten | J123: =J68+J79+J82+J85+J93+J98+J107+J109+J114+J121 -> 34922 | L123: =L79+L82+L85+L93+L98+L107+L109+L114+L121 -> 22445.28
A126: Beloningsbeleid
A128: De Stichting is een vrijwilligersorganisatie en heeft geen personeel in vaste dienst.
A130: Beloning Bestuurders
A131: De bestuurders ontvangen geen vergoeding voor hun werkzaamheden voor de stichting.
